{"text_format":"1","workbook":"xlsx","n_sheets":2,"sheets":["Source","PTable"],"not_rendered":{"charts":0,"images":0,"macros":1,"external_links":0,"defined_names":10,"comments":0,"pivot_tables":3},"unopened":[],"bounds":{"document_bytes":16777216,"sheet_cells":100000,"rows_first":2000,"rows_last":500,"rows_between":2000,"halvings":0,"cell_chars":16384,"cell_head_chars":4096},"cells_cut":0,"cells_raw":0,"read":"whole","date_system":"1900"}

{"sheet":"Source","index":0,"n_rows":195,"n_cols":11,"rows_kept":195,"cut":false,"hidden":false,"merged":[]}
[]
[null,"Table1",null,null,null,null,null,null,null,"Table2"]
[null,"Date","Client","Service","Rev",null,null,null,null,"Client","Service"]
[null,{"$f":"DATE(2010,RANDBETWEEN(1,12),RANDBETWEEN(1,31))","v":"2010-05-15"},{"$f":"INDEX(Table2[Client],RANDBETWEEN(1,ROWS(Table2[])))","v":"Turner"},{"$f":"INDEX(Table2[Service],RANDBETWEEN(1,ROWS(Table2[])))","v":"Kucec"},{"$f":"RANDBETWEEN(10,280)","v":55},null,null,null,null,"Perez","Fadut"]
[null,{"$f":"DATE(2010,RANDBETWEEN(1,12),RANDBETWEEN(1,31))","v":"2010-07-28"},{"$f":"INDEX(Table2[Client],RANDBETWEEN(1,ROWS(Table2[])))","v":"Miller"},{"$f":"INDEX(Table2[Service],RANDBETWEEN(1,ROWS(Table2[])))","v":"Kapan"},{"$f":"RANDBETWEEN(10,280)","v":74},null,null,null,null,"Roberts","Kapan"]
[null,"2010-08-11",{"$f":"INDEX(Table2[Client],RANDBETWEEN(1,ROWS(Table2[])))","v":"Phillips"},{"$f":"INDEX(Table2[Service],RANDBETWEEN(1,ROWS(Table2[])))","v":"Dokok"},17,null,null,null,null,"Turner","Pikab"]
[null,"2010-10-04",{"$f":"INDEX(Table2[Client],RANDBETWEEN(1,ROWS(Table2[])))","v":"Turner"},{"$f":"INDEX(Table2[Service],RANDBETWEEN(1,ROWS(Table2[])))","v":"Veneg"},254,null,null,null,null,"Phillips","Ludin"]
[null,"2010-01-26",{"$f":"INDEX(Table2[Client],RANDBETWEEN(1,ROWS(Table2[])))","v":"Parker"},{"$f":"INDEX(Table2[Service],RANDBETWEEN(1,ROWS(Table2[])))","v":"Veneg"},119,null,null,null,null,"Campbell","Dokok"]
[null,"2010-11-28",{"$f":"INDEX(Table2[Client],RANDBETWEEN(1,ROWS(Table2[])))","v":"Perez"},{"$f":"INDEX(Table2[Service],RANDBETWEEN(1,ROWS(Table2[])))","v":"Pikab"},182,null,null,null,null,"Parker","Veneg"]
[null,"2010-08-31",{"$f":"INDEX(Table2[Client],RANDBETWEEN(1,ROWS(Table2[])))","v":"Perez"},{"$f":"INDEX(Table2[Service],RANDBETWEEN(1,ROWS(Table2[])))","v":"Dokok"},250,null,null,null,null,"Miller","Kucec"]
[null,"2010-12-20",{"$f":"INDEX(Table2[Client],RANDBETWEEN(1,ROWS(Table2[])))","v":"Miller"},{"$f":"INDEX(Table2[Service],RANDBETWEEN(1,ROWS(Table2[])))","v":"Kucec"},207]
[null,"2010-05-26",{"$f":"INDEX(Table2[Client],RANDBETWEEN(1,ROWS(Table2[])))","v":"Roberts"},{"$f":"INDEX(Table2[Service],RANDBETWEEN(1,ROWS(Table2[])))","v":"Kapan"},45]
[null,"2010-12-28",{"$f":"INDEX(Table2[Client],RANDBETWEEN(1,ROWS(Table2[])))","v":"Parker"},{"$f":"INDEX(Table2[Service],RANDBETWEEN(1,ROWS(Table2[])))","v":"Pikab"},14]
[null,"2010-07-24",{"$f":"INDEX(Table2[Client],RANDBETWEEN(1,ROWS(Table2[])))","v":"Miller"},{"$f":"INDEX(Table2[Service],RANDBETWEEN(1,ROWS(Table2[])))","v":"Fadut"},172]
[null,"2010-09-21",{"$f":"INDEX(Table2[Client],RANDBETWEEN(1,ROWS(Table2[])))","v":"Campbell"},{"$f":"INDEX(Table2[Service],RANDBETWEEN(1,ROWS(Table2[])))","v":"Dokok"},175]
[null,"2010-07-14",{"$f":"INDEX(Table2[Client],RANDBETWEEN(1,ROWS(Table2[])))","v":"Roberts"},{"$f":"INDEX(Table2[Service],RANDBETWEEN(1,ROWS(Table2[])))","v":"Ludin"},71]
[null,"2010-07-02",{"$f":"INDEX(Table2[Client],RANDBETWEEN(1,ROWS(Table2[])))","v":"Turner"},{"$f":"INDEX(Table2[Service],RANDBETWEEN(1,ROWS(Table2[])))","v":"Dokok"},235]
[null,"2010-04-06",{"$f":"INDEX(Table2[Client],RANDBETWEEN(1,ROWS(Table2[])))","v":"Roberts"},{"$f":"INDEX(Table2[Service],RANDBETWEEN(1,ROWS(Table2[])))","v":"Ludin"},227]
[null,"2010-02-16",{"$f":"INDEX(Table2[Client],RANDBETWEEN(1,ROWS(Table2[])))","v":"Parker"},{"$f":"INDEX(Table2[Service],RANDBETWEEN(1,ROWS(Table2[])))","v":"Kucec"},216]
[null,"2010-07-30",{"$f":"INDEX(Table2[Client],RANDBETWEEN(1,ROWS(Table2[])))","v":"Perez"},{"$f":"INDEX(Table2[Service],RANDBETWEEN(1,ROWS(Table2[])))","v":"Dokok"},186]
[null,"2010-02-01",{"$f":"INDEX(Table2[Client],RANDBETWEEN(1,ROWS(Table2[])))","v":"Parker"},{"$f":"INDEX(Table2[Service],RANDBETWEEN(1,ROWS(Table2[])))","v":"Dokok"},110]
[null,"2010-07-13",{"$f":"INDEX(Table2[Client],RANDBETWEEN(1,ROWS(Table2[])))","v":"Parker"},{"$f":"INDEX(Table2[Service],RANDBETWEEN(1,ROWS(Table2[])))","v":"Pikab"},91]
[null,"2010-11-25",{"$f":"INDEX(Table2[Client],RANDBETWEEN(1,ROWS(Table2[])))","v":"Roberts"},{"$f":"INDEX(Table2[Service],RANDBETWEEN(1,ROWS(Table2[])))","v":"Kapan"},132]
[null,"2010-08-20",{"$f":"INDEX(Table2[Client],RANDBETWEEN(1,ROWS(Table2[])))","v":"Turner"},{"$f":"INDEX(Table2[Service],RANDBETWEEN(1,ROWS(Table2[])))","v":"Kucec"},136]
[null,"2010-11-16",{"$f":"INDEX(Table2[Client],RANDBETWEEN(1,ROWS(Table2[])))","v":"Perez"},{"$f":"INDEX(Table2[Service],RANDBETWEEN(1,ROWS(Table2[])))","v":"Ludin"},197]
[null,"2010-11-04",{"$f":"INDEX(Table2[Client],RANDBETWEEN(1,ROWS(Table2[])))","v":"Campbell"},{"$f":"INDEX(Table2[Service],RANDBETWEEN(1,ROWS(Table2[])))","v":"Veneg"},187]
[null,"2010-09-19",{"$f":"INDEX(Table2[Client],RANDBETWEEN(1,ROWS(Table2[])))","v":"Miller"},{"$f":"INDEX(Table2[Service],RANDBETWEEN(1,ROWS(Table2[])))","v":"Kapan"},210]
[null,"2010-02-20",{"$f":"INDEX(Table2[Client],RANDBETWEEN(1,ROWS(Table2[])))","v":"Phillips"},{"$f":"INDEX(Table2[Service],RANDBETWEEN(1,ROWS(Table2[])))","v":"Fadut"},258]
[null,"2010-11-17",{"$f":"INDEX(Table2[Client],RANDBETWEEN(1,ROWS(Table2[])))","v":"Parker"},{"$f":"INDEX(Table2[Service],RANDBETWEEN(1,ROWS(Table2[])))","v":"Veneg"},221]
[null,"2010-09-21",{"$f":"INDEX(Table2[Client],RANDBETWEEN(1,ROWS(Table2[])))","v":"Parker"},{"$f":"INDEX(Table2[Service],RANDBETWEEN(1,ROWS(Table2[])))","v":"Veneg"},200]
[null,"2010-08-04",{"$f":"INDEX(Table2[Client],RANDBETWEEN(1,ROWS(Table2[])))","v":"Roberts"},{"$f":"INDEX(Table2[Service],RANDBETWEEN(1,ROWS(Table2[])))","v":"Pikab"},123]
[null,"2010-02-11",{"$f":"INDEX(Table2[Client],RANDBETWEEN(1,ROWS(Table2[])))","v":"Perez"},{"$f":"INDEX(Table2[Service],RANDBETWEEN(1,ROWS(Table2[])))","v":"Fadut"},205]
[null,"2010-01-02",{"$f":"INDEX(Table2[Client],RANDBETWEEN(1,ROWS(Table2[])))","v":"Phillips"},{"$f":"INDEX(Table2[Service],RANDBETWEEN(1,ROWS(Table2[])))","v":"Fadut"},185]
[null,"2010-01-09",{"$f":"INDEX(Table2[Client],RANDBETWEEN(1,ROWS(Table2[])))","v":"Phillips"},{"$f":"INDEX(Table2[Service],RANDBETWEEN(1,ROWS(Table2[])))","v":"Dokok"},11]
[null,"2010-02-11",{"$f":"INDEX(Table2[Client],RANDBETWEEN(1,ROWS(Table2[])))","v":"Campbell"},{"$f":"INDEX(Table2[Service],RANDBETWEEN(1,ROWS(Table2[])))","v":"Dokok"},137]
[null,"2010-02-27",{"$f":"INDEX(Table2[Client],RANDBETWEEN(1,ROWS(Table2[])))","v":"Roberts"},{"$f":"INDEX(Table2[Service],RANDBETWEEN(1,ROWS(Table2[])))","v":"Pikab"},113]
[null,"2010-10-12",{"$f":"INDEX(Table2[Client],RANDBETWEEN(1,ROWS(Table2[])))","v":"Campbell"},{"$f":"INDEX(Table2[Service],RANDBETWEEN(1,ROWS(Table2[])))","v":"Ludin"},181]
[null,"2010-02-16",{"$f":"INDEX(Table2[Client],RANDBETWEEN(1,ROWS(Table2[])))","v":"Miller"},{"$f":"INDEX(Table2[Service],RANDBETWEEN(1,ROWS(Table2[])))","v":"Kucec"},37]
[null,"2010-01-13",{"$f":"INDEX(Table2[Client],RANDBETWEEN(1,ROWS(Table2[])))","v":"Turner"},{"$f":"INDEX(Table2[Service],RANDBETWEEN(1,ROWS(Table2[])))","v":"Ludin"},254]
[null,"2010-04-13",{"$f":"INDEX(Table2[Client],RANDBETWEEN(1,ROWS(Table2[])))","v":"Roberts"},{"$f":"INDEX(Table2[Service],RANDBETWEEN(1,ROWS(Table2[])))","v":"Pikab"},225]
[null,"2010-10-05",{"$f":"INDEX(Table2[Client],RANDBETWEEN(1,ROWS(Table2[])))","v":"Perez"},{"$f":"INDEX(Table2[Service],RANDBETWEEN(1,ROWS(Table2[])))","v":"Kapan"},235]
[null,"2010-05-01",{"$f":"INDEX(Table2[Client],RANDBETWEEN(1,ROWS(Table2[])))","v":"Parker"},{"$f":"INDEX(Table2[Service],RANDBETWEEN(1,ROWS(Table2[])))","v":"Dokok"},234]
[null,"2010-09-30",{"$f":"INDEX(Table2[Client],RANDBETWEEN(1,ROWS(Table2[])))","v":"Campbell"},{"$f":"INDEX(Table2[Service],RANDBETWEEN(1,ROWS(Table2[])))","v":"Fadut"},265]
[null,"2010-07-20",{"$f":"INDEX(Table2[Client],RANDBETWEEN(1,ROWS(Table2[])))","v":"Parker"},{"$f":"INDEX(Table2[Service],RANDBETWEEN(1,ROWS(Table2[])))","v":"Dokok"},145]
[null,"2010-09-26",{"$f":"INDEX(Table2[Client],RANDBETWEEN(1,ROWS(Table2[])))","v":"Turner"},{"$f":"INDEX(Table2[Service],RANDBETWEEN(1,ROWS(Table2[])))","v":"Kucec"},59]
[null,"2010-06-24",{"$f":"INDEX(Table2[Client],RANDBETWEEN(1,ROWS(Table2[])))","v":"Campbell"},{"$f":"INDEX(Table2[Service],RANDBETWEEN(1,ROWS(Table2[])))","v":"Ludin"},126]
[null,"2010-04-04",{"$f":"INDEX(Table2[Client],RANDBETWEEN(1,ROWS(Table2[])))","v":"Campbell"},{"$f":"INDEX(Table2[Service],RANDBETWEEN(1,ROWS(Table2[])))","v":"Dokok"},16]
[null,"2010-01-08",{"$f":"INDEX(Table2[Client],RANDBETWEEN(1,ROWS(Table2[])))","v":"Campbell"},{"$f":"INDEX(Table2[Service],RANDBETWEEN(1,ROWS(Table2[])))","v":"Pikab"},23]
[null,"2010-12-13",{"$f":"INDEX(Table2[Client],RANDBETWEEN(1,ROWS(Table2[])))","v":"Miller"},{"$f":"INDEX(Table2[Service],RANDBETWEEN(1,ROWS(Table2[])))","v":"Kucec"},114]
[null,"2010-07-02",{"$f":"INDEX(Table2[Client],RANDBETWEEN(1,ROWS(Table2[])))","v":"Parker"},{"$f":"INDEX(Table2[Service],RANDBETWEEN(1,ROWS(Table2[])))","v":"Fadut"},19]
[null,"2010-02-17",{"$f":"INDEX(Table2[Client],RANDBETWEEN(1,ROWS(Table2[])))","v":"Turner"},{"$f":"INDEX(Table2[Service],RANDBETWEEN(1,ROWS(Table2[])))","v":"Fadut"},77]
[null,"2010-12-18",{"$f":"INDEX(Table2[Client],RANDBETWEEN(1,ROWS(Table2[])))","v":"Campbell"},{"$f":"INDEX(Table2[Service],RANDBETWEEN(1,ROWS(Table2[])))","v":"Ludin"},52]
[null,"2010-12-05",{"$f":"INDEX(Table2[Client],RANDBETWEEN(1,ROWS(Table2[])))","v":"Perez"},{"$f":"INDEX(Table2[Service],RANDBETWEEN(1,ROWS(Table2[])))","v":"Kapan"},86]
[null,"2010-06-16",{"$f":"INDEX(Table2[Client],RANDBETWEEN(1,ROWS(Table2[])))","v":"Miller"},{"$f":"INDEX(Table2[Service],RANDBETWEEN(1,ROWS(Table2[])))","v":"Kucec"},32]
[null,"2010-05-21",{"$f":"INDEX(Table2[Client],RANDBETWEEN(1,ROWS(Table2[])))","v":"Phillips"},{"$f":"INDEX(Table2[Service],RANDBETWEEN(1,ROWS(Table2[])))","v":"Kucec"},183]
[null,"2010-03-09",{"$f":"INDEX(Table2[Client],RANDBETWEEN(1,ROWS(Table2[])))","v":"Roberts"},{"$f":"INDEX(Table2[Service],RANDBETWEEN(1,ROWS(Table2[])))","v":"Pikab"},251]
[null,"2010-06-19",{"$f":"INDEX(Table2[Client],RANDBETWEEN(1,ROWS(Table2[])))","v":"Turner"},{"$f":"INDEX(Table2[Service],RANDBETWEEN(1,ROWS(Table2[])))","v":"Kapan"},274]
[null,"2010-03-20",{"$f":"INDEX(Table2[Client],RANDBETWEEN(1,ROWS(Table2[])))","v":"Turner"},{"$f":"INDEX(Table2[Service],RANDBETWEEN(1,ROWS(Table2[])))","v":"Ludin"},185]
[null,"2010-01-09",{"$f":"INDEX(Table2[Client],RANDBETWEEN(1,ROWS(Table2[])))","v":"Campbell"},{"$f":"INDEX(Table2[Service],RANDBETWEEN(1,ROWS(Table2[])))","v":"Pikab"},246]
[null,"2010-09-09",{"$f":"INDEX(Table2[Client],RANDBETWEEN(1,ROWS(Table2[])))","v":"Phillips"},{"$f":"INDEX(Table2[Service],RANDBETWEEN(1,ROWS(Table2[])))","v":"Ludin"},131]
[null,"2010-08-06",{"$f":"INDEX(Table2[Client],RANDBETWEEN(1,ROWS(Table2[])))","v":"Parker"},{"$f":"INDEX(Table2[Service],RANDBETWEEN(1,ROWS(Table2[])))","v":"Fadut"},193]
[null,"2010-09-03",{"$f":"INDEX(Table2[Client],RANDBETWEEN(1,ROWS(Table2[])))","v":"Campbell"},{"$f":"INDEX(Table2[Service],RANDBETWEEN(1,ROWS(Table2[])))","v":"Ludin"},43]
[null,"2010-07-22",{"$f":"INDEX(Table2[Client],RANDBETWEEN(1,ROWS(Table2[])))","v":"Perez"},{"$f":"INDEX(Table2[Service],RANDBETWEEN(1,ROWS(Table2[])))","v":"Ludin"},62]
[null,"2010-11-22",{"$f":"INDEX(Table2[Client],RANDBETWEEN(1,ROWS(Table2[])))","v":"Turner"},{"$f":"INDEX(Table2[Service],RANDBETWEEN(1,ROWS(Table2[])))","v":"Dokok"},273]
[null,"2010-11-07",{"$f":"INDEX(Table2[Client],RANDBETWEEN(1,ROWS(Table2[])))","v":"Roberts"},{"$f":"INDEX(Table2[Service],RANDBETWEEN(1,ROWS(Table2[])))","v":"Kucec"},116]
[null,"2010-03-21",{"$f":"INDEX(Table2[Client],RANDBETWEEN(1,ROWS(Table2[])))","v":"Roberts"},{"$f":"INDEX(Table2[Service],RANDBETWEEN(1,ROWS(Table2[])))","v":"Kucec"},161]
[null,"2010-03-27",{"$f":"INDEX(Table2[Client],RANDBETWEEN(1,ROWS(Table2[])))","v":"Campbell"},{"$f":"INDEX(Table2[Service],RANDBETWEEN(1,ROWS(Table2[])))","v":"Ludin"},185]
[null,"2010-10-30",{"$f":"INDEX(Table2[Client],RANDBETWEEN(1,ROWS(Table2[])))","v":"Perez"},{"$f":"INDEX(Table2[Service],RANDBETWEEN(1,ROWS(Table2[])))","v":"Kucec"},118]
[null,{"$f":"DATE(2010,RANDBETWEEN(1,12),RANDBETWEEN(1,31))","v":"2010-12-31"},{"$f":"INDEX(Table2[Client],RANDBETWEEN(1,ROWS(Table2[])))","v":"Phillips"},{"$f":"INDEX(Table2[Service],RANDBETWEEN(1,ROWS(Table2[])))","v":"Fadut"},{"$f":"RANDBETWEEN(10,280)","v":174}]
[null,"2010-10-26",{"$f":"INDEX(Table2[Client],RANDBETWEEN(1,ROWS(Table2[])))","v":"Phillips"},{"$f":"INDEX(Table2[Service],RANDBETWEEN(1,ROWS(Table2[])))","v":"Pikab"},248]
[null,"2010-05-17",{"$f":"INDEX(Table2[Client],RANDBETWEEN(1,ROWS(Table2[])))","v":"Parker"},{"$f":"INDEX(Table2[Service],RANDBETWEEN(1,ROWS(Table2[])))","v":"Fadut"},65]
[null,"2010-10-09",{"$f":"INDEX(Table2[Client],RANDBETWEEN(1,ROWS(Table2[])))","v":"Roberts"},{"$f":"INDEX(Table2[Service],RANDBETWEEN(1,ROWS(Table2[])))","v":"Dokok"},186]
[null,"2010-09-06",{"$f":"INDEX(Table2[Client],RANDBETWEEN(1,ROWS(Table2[])))","v":"Parker"},{"$f":"INDEX(Table2[Service],RANDBETWEEN(1,ROWS(Table2[])))","v":"Kucec"},205]
[null,"2010-01-06",{"$f":"INDEX(Table2[Client],RANDBETWEEN(1,ROWS(Table2[])))","v":"Parker"},{"$f":"INDEX(Table2[Service],RANDBETWEEN(1,ROWS(Table2[])))","v":"Dokok"},76]
[null,"2010-02-20",{"$f":"INDEX(Table2[Client],RANDBETWEEN(1,ROWS(Table2[])))","v":"Turner"},{"$f":"INDEX(Table2[Service],RANDBETWEEN(1,ROWS(Table2[])))","v":"Kucec"},188]
[null,"2010-09-19",{"$f":"INDEX(Table2[Client],RANDBETWEEN(1,ROWS(Table2[])))","v":"Perez"},{"$f":"INDEX(Table2[Service],RANDBETWEEN(1,ROWS(Table2[])))","v":"Dokok"},42]
[null,"2010-01-05",{"$f":"INDEX(Table2[Client],RANDBETWEEN(1,ROWS(Table2[])))","v":"Perez"},{"$f":"INDEX(Table2[Service],RANDBETWEEN(1,ROWS(Table2[])))","v":"Kucec"},189]
[null,"2010-12-20",{"$f":"INDEX(Table2[Client],RANDBETWEEN(1,ROWS(Table2[])))","v":"Miller"},{"$f":"INDEX(Table2[Service],RANDBETWEEN(1,ROWS(Table2[])))","v":"Kucec"},255]
[null,"2010-07-31",{"$f":"INDEX(Table2[Client],RANDBETWEEN(1,ROWS(Table2[])))","v":"Turner"},{"$f":"INDEX(Table2[Service],RANDBETWEEN(1,ROWS(Table2[])))","v":"Veneg"},47]
[null,"2010-04-18",{"$f":"INDEX(Table2[Client],RANDBETWEEN(1,ROWS(Table2[])))","v":"Parker"},{"$f":"INDEX(Table2[Service],RANDBETWEEN(1,ROWS(Table2[])))","v":"Veneg"},56]
[null,"2010-09-30",{"$f":"INDEX(Table2[Client],RANDBETWEEN(1,ROWS(Table2[])))","v":"Phillips"},{"$f":"INDEX(Table2[Service],RANDBETWEEN(1,ROWS(Table2[])))","v":"Kucec"},22]
[null,"2010-08-18",{"$f":"INDEX(Table2[Client],RANDBETWEEN(1,ROWS(Table2[])))","v":"Turner"},{"$f":"INDEX(Table2[Service],RANDBETWEEN(1,ROWS(Table2[])))","v":"Kucec"},133]
[null,"2010-08-27",{"$f":"INDEX(Table2[Client],RANDBETWEEN(1,ROWS(Table2[])))","v":"Turner"},{"$f":"INDEX(Table2[Service],RANDBETWEEN(1,ROWS(Table2[])))","v":"Fadut"},244]
[null,"2010-09-16",{"$f":"INDEX(Table2[Client],RANDBETWEEN(1,ROWS(Table2[])))","v":"Turner"},{"$f":"INDEX(Table2[Service],RANDBETWEEN(1,ROWS(Table2[])))","v":"Veneg"},277]
[null,"2010-09-14",{"$f":"INDEX(Table2[Client],RANDBETWEEN(1,ROWS(Table2[])))","v":"Perez"},{"$f":"INDEX(Table2[Service],RANDBETWEEN(1,ROWS(Table2[])))","v":"Kapan"},265]
[null,"2010-09-16",{"$f":"INDEX(Table2[Client],RANDBETWEEN(1,ROWS(Table2[])))","v":"Perez"},{"$f":"INDEX(Table2[Service],RANDBETWEEN(1,ROWS(Table2[])))","v":"Veneg"},101]
[null,"2010-01-18",{"$f":"INDEX(Table2[Client],RANDBETWEEN(1,ROWS(Table2[])))","v":"Campbell"},{"$f":"INDEX(Table2[Service],RANDBETWEEN(1,ROWS(Table2[])))","v":"Pikab"},231]
[null,"2010-06-13",{"$f":"INDEX(Table2[Client],RANDBETWEEN(1,ROWS(Table2[])))","v":"Parker"},{"$f":"INDEX(Table2[Service],RANDBETWEEN(1,ROWS(Table2[])))","v":"Ludin"},48]
[null,"2010-05-31",{"$f":"INDEX(Table2[Client],RANDBETWEEN(1,ROWS(Table2[])))","v":"Perez"},{"$f":"INDEX(Table2[Service],RANDBETWEEN(1,ROWS(Table2[])))","v":"Kucec"},48]
[null,"2010-06-11",{"$f":"INDEX(Table2[Client],RANDBETWEEN(1,ROWS(Table2[])))","v":"Parker"},{"$f":"INDEX(Table2[Service],RANDBETWEEN(1,ROWS(Table2[])))","v":"Ludin"},209]
[null,"2010-06-29",{"$f":"INDEX(Table2[Client],RANDBETWEEN(1,ROWS(Table2[])))","v":"Perez"},{"$f":"INDEX(Table2[Service],RANDBETWEEN(1,ROWS(Table2[])))","v":"Kucec"},77]
[null,"2010-09-14",{"$f":"INDEX(Table2[Client],RANDBETWEEN(1,ROWS(Table2[])))","v":"Miller"},{"$f":"INDEX(Table2[Service],RANDBETWEEN(1,ROWS(Table2[])))","v":"Veneg"},70]
[null,"2010-11-01",{"$f":"INDEX(Table2[Client],RANDBETWEEN(1,ROWS(Table2[])))","v":"Roberts"},{"$f":"INDEX(Table2[Service],RANDBETWEEN(1,ROWS(Table2[])))","v":"Ludin"},140]
[null,"2010-08-04",{"$f":"INDEX(Table2[Client],RANDBETWEEN(1,ROWS(Table2[])))","v":"Phillips"},{"$f":"INDEX(Table2[Service],RANDBETWEEN(1,ROWS(Table2[])))","v":"Pikab"},236]
[null,"2010-07-06",{"$f":"INDEX(Table2[Client],RANDBETWEEN(1,ROWS(Table2[])))","v":"Roberts"},{"$f":"INDEX(Table2[Service],RANDBETWEEN(1,ROWS(Table2[])))","v":"Fadut"},54]
[null,"2010-01-20",{"$f":"INDEX(Table2[Client],RANDBETWEEN(1,ROWS(Table2[])))","v":"Campbell"},{"$f":"INDEX(Table2[Service],RANDBETWEEN(1,ROWS(Table2[])))","v":"Ludin"},195]
[null,"2010-08-11",{"$f":"INDEX(Table2[Client],RANDBETWEEN(1,ROWS(Table2[])))","v":"Roberts"},{"$f":"INDEX(Table2[Service],RANDBETWEEN(1,ROWS(Table2[])))","v":"Kucec"},83]
[null,"2010-12-13",{"$f":"INDEX(Table2[Client],RANDBETWEEN(1,ROWS(Table2[])))","v":"Perez"},{"$f":"INDEX(Table2[Service],RANDBETWEEN(1,ROWS(Table2[])))","v":"Pikab"},117]
[null,"2010-04-23",{"$f":"INDEX(Table2[Client],RANDBETWEEN(1,ROWS(Table2[])))","v":"Turner"},{"$f":"INDEX(Table2[Service],RANDBETWEEN(1,ROWS(Table2[])))","v":"Pikab"},32]
[null,"2010-09-26",{"$f":"INDEX(Table2[Client],RANDBETWEEN(1,ROWS(Table2[])))","v":"Perez"},{"$f":"INDEX(Table2[Service],RANDBETWEEN(1,ROWS(Table2[])))","v":"Pikab"},12]
[null,"2010-11-11",{"$f":"INDEX(Table2[Client],RANDBETWEEN(1,ROWS(Table2[])))","v":"Campbell"},{"$f":"INDEX(Table2[Service],RANDBETWEEN(1,ROWS(Table2[])))","v":"Kucec"},211]
[null,"2010-07-01",{"$f":"INDEX(Table2[Client],RANDBETWEEN(1,ROWS(Table2[])))","v":"Campbell"},{"$f":"INDEX(Table2[Service],RANDBETWEEN(1,ROWS(Table2[])))","v":"Fadut"},231]
[null,"2010-05-16",{"$f":"INDEX(Table2[Client],RANDBETWEEN(1,ROWS(Table2[])))","v":"Roberts"},{"$f":"INDEX(Table2[Service],RANDBETWEEN(1,ROWS(Table2[])))","v":"Dokok"},14]
[null,"2010-03-17",{"$f":"INDEX(Table2[Client],RANDBETWEEN(1,ROWS(Table2[])))","v":"Perez"},{"$f":"INDEX(Table2[Service],RANDBETWEEN(1,ROWS(Table2[])))","v":"Ludin"},191]
[null,"2010-11-19",{"$f":"INDEX(Table2[Client],RANDBETWEEN(1,ROWS(Table2[])))","v":"Parker"},{"$f":"INDEX(Table2[Service],RANDBETWEEN(1,ROWS(Table2[])))","v":"Kucec"},227]
[null,"2010-03-20",{"$f":"INDEX(Table2[Client],RANDBETWEEN(1,ROWS(Table2[])))","v":"Perez"},{"$f":"INDEX(Table2[Service],RANDBETWEEN(1,ROWS(Table2[])))","v":"Kapan"},70]
[null,"2010-01-20",{"$f":"INDEX(Table2[Client],RANDBETWEEN(1,ROWS(Table2[])))","v":"Campbell"},{"$f":"INDEX(Table2[Service],RANDBETWEEN(1,ROWS(Table2[])))","v":"Kucec"},19]
[null,"2010-05-27",{"$f":"INDEX(Table2[Client],RANDBETWEEN(1,ROWS(Table2[])))","v":"Campbell"},{"$f":"INDEX(Table2[Service],RANDBETWEEN(1,ROWS(Table2[])))","v":"Fadut"},43]
[null,"2010-11-20",{"$f":"INDEX(Table2[Client],RANDBETWEEN(1,ROWS(Table2[])))","v":"Roberts"},{"$f":"INDEX(Table2[Service],RANDBETWEEN(1,ROWS(Table2[])))","v":"Kucec"},152]
[null,"2010-08-28",{"$f":"INDEX(Table2[Client],RANDBETWEEN(1,ROWS(Table2[])))","v":"Perez"},{"$f":"INDEX(Table2[Service],RANDBETWEEN(1,ROWS(Table2[])))","v":"Fadut"},182]
[null,"2010-03-06",{"$f":"INDEX(Table2[Client],RANDBETWEEN(1,ROWS(Table2[])))","v":"Phillips"},{"$f":"INDEX(Table2[Service],RANDBETWEEN(1,ROWS(Table2[])))","v":"Veneg"},74]
[null,"2010-03-20",{"$f":"INDEX(Table2[Client],RANDBETWEEN(1,ROWS(Table2[])))","v":"Roberts"},{"$f":"INDEX(Table2[Service],RANDBETWEEN(1,ROWS(Table2[])))","v":"Fadut"},75]
[null,"2010-05-12",{"$f":"INDEX(Table2[Client],RANDBETWEEN(1,ROWS(Table2[])))","v":"Miller"},{"$f":"INDEX(Table2[Service],RANDBETWEEN(1,ROWS(Table2[])))","v":"Ludin"},247]
[null,"2010-12-21",{"$f":"INDEX(Table2[Client],RANDBETWEEN(1,ROWS(Table2[])))","v":"Phillips"},{"$f":"INDEX(Table2[Service],RANDBETWEEN(1,ROWS(Table2[])))","v":"Ludin"},205]
[null,"2010-01-05",{"$f":"INDEX(Table2[Client],RANDBETWEEN(1,ROWS(Table2[])))","v":"Miller"},{"$f":"INDEX(Table2[Service],RANDBETWEEN(1,ROWS(Table2[])))","v":"Dokok"},69]
[null,"2010-09-13",{"$f":"INDEX(Table2[Client],RANDBETWEEN(1,ROWS(Table2[])))","v":"Parker"},{"$f":"INDEX(Table2[Service],RANDBETWEEN(1,ROWS(Table2[])))","v":"Fadut"},138]
[null,"2010-01-17",{"$f":"INDEX(Table2[Client],RANDBETWEEN(1,ROWS(Table2[])))","v":"Turner"},{"$f":"INDEX(Table2[Service],RANDBETWEEN(1,ROWS(Table2[])))","v":"Veneg"},225]
[null,"2010-08-07",{"$f":"INDEX(Table2[Client],RANDBETWEEN(1,ROWS(Table2[])))","v":"Perez"},{"$f":"INDEX(Table2[Service],RANDBETWEEN(1,ROWS(Table2[])))","v":"Pikab"},167]
[null,"2010-06-24",{"$f":"INDEX(Table2[Client],RANDBETWEEN(1,ROWS(Table2[])))","v":"Roberts"},{"$f":"INDEX(Table2[Service],RANDBETWEEN(1,ROWS(Table2[])))","v":"Kucec"},13]
[null,"2010-08-10",{"$f":"INDEX(Table2[Client],RANDBETWEEN(1,ROWS(Table2[])))","v":"Turner"},{"$f":"INDEX(Table2[Service],RANDBETWEEN(1,ROWS(Table2[])))","v":"Pikab"},25]
[null,"2010-12-21",{"$f":"INDEX(Table2[Client],RANDBETWEEN(1,ROWS(Table2[])))","v":"Perez"},{"$f":"INDEX(Table2[Service],RANDBETWEEN(1,ROWS(Table2[])))","v":"Kapan"},268]
[null,"2010-12-29",{"$f":"INDEX(Table2[Client],RANDBETWEEN(1,ROWS(Table2[])))","v":"Perez"},{"$f":"INDEX(Table2[Service],RANDBETWEEN(1,ROWS(Table2[])))","v":"Veneg"},255]
[null,"2010-08-16",{"$f":"INDEX(Table2[Client],RANDBETWEEN(1,ROWS(Table2[])))","v":"Miller"},{"$f":"INDEX(Table2[Service],RANDBETWEEN(1,ROWS(Table2[])))","v":"Pikab"},58]
[null,"2010-10-27",{"$f":"INDEX(Table2[Client],RANDBETWEEN(1,ROWS(Table2[])))","v":"Turner"},{"$f":"INDEX(Table2[Service],RANDBETWEEN(1,ROWS(Table2[])))","v":"Dokok"},119]
[null,"2010-04-13",{"$f":"INDEX(Table2[Client],RANDBETWEEN(1,ROWS(Table2[])))","v":"Phillips"},{"$f":"INDEX(Table2[Service],RANDBETWEEN(1,ROWS(Table2[])))","v":"Kapan"},104]
[null,"2010-06-20",{"$f":"INDEX(Table2[Client],RANDBETWEEN(1,ROWS(Table2[])))","v":"Turner"},{"$f":"INDEX(Table2[Service],RANDBETWEEN(1,ROWS(Table2[])))","v":"Pikab"},221]
[null,"2010-10-18",{"$f":"INDEX(Table2[Client],RANDBETWEEN(1,ROWS(Table2[])))","v":"Perez"},{"$f":"INDEX(Table2[Service],RANDBETWEEN(1,ROWS(Table2[])))","v":"Veneg"},94]
[null,"2010-09-26",{"$f":"INDEX(Table2[Client],RANDBETWEEN(1,ROWS(Table2[])))","v":"Perez"},{"$f":"INDEX(Table2[Service],RANDBETWEEN(1,ROWS(Table2[])))","v":"Pikab"},260]
[null,"2010-01-31",{"$f":"INDEX(Table2[Client],RANDBETWEEN(1,ROWS(Table2[])))","v":"Roberts"},{"$f":"INDEX(Table2[Service],RANDBETWEEN(1,ROWS(Table2[])))","v":"Kucec"},274]
[null,"2010-04-20",{"$f":"INDEX(Table2[Client],RANDBETWEEN(1,ROWS(Table2[])))","v":"Perez"},{"$f":"INDEX(Table2[Service],RANDBETWEEN(1,ROWS(Table2[])))","v":"Ludin"},191]
[null,"2010-08-11",{"$f":"INDEX(Table2[Client],RANDBETWEEN(1,ROWS(Table2[])))","v":"Perez"},{"$f":"INDEX(Table2[Service],RANDBETWEEN(1,ROWS(Table2[])))","v":"Dokok"},26]
[null,"2010-08-08",{"$f":"INDEX(Table2[Client],RANDBETWEEN(1,ROWS(Table2[])))","v":"Phillips"},{"$f":"INDEX(Table2[Service],RANDBETWEEN(1,ROWS(Table2[])))","v":"Ludin"},29]
[null,{"$f":"DATE(2010,RANDBETWEEN(1,12),RANDBETWEEN(1,31))","v":"2010-08-02"},{"$f":"INDEX(Table2[Client],RANDBETWEEN(1,ROWS(Table2[])))","v":"Parker"},{"$f":"INDEX(Table2[Service],RANDBETWEEN(1,ROWS(Table2[])))","v":"Pikab"},{"$f":"RANDBETWEEN(10,280)","v":93}]
[null,"2010-01-22",{"$f":"INDEX(Table2[Client],RANDBETWEEN(1,ROWS(Table2[])))","v":"Campbell"},{"$f":"INDEX(Table2[Service],RANDBETWEEN(1,ROWS(Table2[])))","v":"Veneg"},203]
[null,"2010-03-16",{"$f":"INDEX(Table2[Client],RANDBETWEEN(1,ROWS(Table2[])))","v":"Perez"},{"$f":"INDEX(Table2[Service],RANDBETWEEN(1,ROWS(Table2[])))","v":"Fadut"},26]
[null,"2010-05-13",{"$f":"INDEX(Table2[Client],RANDBETWEEN(1,ROWS(Table2[])))","v":"Miller"},{"$f":"INDEX(Table2[Service],RANDBETWEEN(1,ROWS(Table2[])))","v":"Veneg"},267]
[null,"2010-10-12",{"$f":"INDEX(Table2[Client],RANDBETWEEN(1,ROWS(Table2[])))","v":"Phillips"},{"$f":"INDEX(Table2[Service],RANDBETWEEN(1,ROWS(Table2[])))","v":"Pikab"},200]
[null,"2010-08-20",{"$f":"INDEX(Table2[Client],RANDBETWEEN(1,ROWS(Table2[])))","v":"Miller"},{"$f":"INDEX(Table2[Service],RANDBETWEEN(1,ROWS(Table2[])))","v":"Ludin"},231]
[null,"2010-03-07",{"$f":"INDEX(Table2[Client],RANDBETWEEN(1,ROWS(Table2[])))","v":"Campbell"},{"$f":"INDEX(Table2[Service],RANDBETWEEN(1,ROWS(Table2[])))","v":"Kucec"},19]
[null,"2010-02-17",{"$f":"INDEX(Table2[Client],RANDBETWEEN(1,ROWS(Table2[])))","v":"Perez"},{"$f":"INDEX(Table2[Service],RANDBETWEEN(1,ROWS(Table2[])))","v":"Veneg"},81]
[null,"2010-08-23",{"$f":"INDEX(Table2[Client],RANDBETWEEN(1,ROWS(Table2[])))","v":"Phillips"},{"$f":"INDEX(Table2[Service],RANDBETWEEN(1,ROWS(Table2[])))","v":"Kucec"},120]
[null,"2010-04-06",{"$f":"INDEX(Table2[Client],RANDBETWEEN(1,ROWS(Table2[])))","v":"Turner"},{"$f":"INDEX(Table2[Service],RANDBETWEEN(1,ROWS(Table2[])))","v":"Kucec"},133]
[null,"2010-02-03",{"$f":"INDEX(Table2[Client],RANDBETWEEN(1,ROWS(Table2[])))","v":"Campbell"},{"$f":"INDEX(Table2[Service],RANDBETWEEN(1,ROWS(Table2[])))","v":"Fadut"},257]
[null,"2010-10-07",{"$f":"INDEX(Table2[Client],RANDBETWEEN(1,ROWS(Table2[])))","v":"Phillips"},{"$f":"INDEX(Table2[Service],RANDBETWEEN(1,ROWS(Table2[])))","v":"Dokok"},165]
[null,"2010-01-28",{"$f":"INDEX(Table2[Client],RANDBETWEEN(1,ROWS(Table2[])))","v":"Campbell"},{"$f":"INDEX(Table2[Service],RANDBETWEEN(1,ROWS(Table2[])))","v":"Dokok"},205]
[null,"2010-07-17",{"$f":"INDEX(Table2[Client],RANDBETWEEN(1,ROWS(Table2[])))","v":"Campbell"},{"$f":"INDEX(Table2[Service],RANDBETWEEN(1,ROWS(Table2[])))","v":"Kapan"},36]
[null,"2010-12-18",{"$f":"INDEX(Table2[Client],RANDBETWEEN(1,ROWS(Table2[])))","v":"Turner"},{"$f":"INDEX(Table2[Service],RANDBETWEEN(1,ROWS(Table2[])))","v":"Ludin"},263]
[null,"2010-11-14",{"$f":"INDEX(Table2[Client],RANDBETWEEN(1,ROWS(Table2[])))","v":"Phillips"},{"$f":"INDEX(Table2[Service],RANDBETWEEN(1,ROWS(Table2[])))","v":"Fadut"},95]
[null,"2010-11-02",{"$f":"INDEX(Table2[Client],RANDBETWEEN(1,ROWS(Table2[])))","v":"Turner"},{"$f":"INDEX(Table2[Service],RANDBETWEEN(1,ROWS(Table2[])))","v":"Veneg"},22]
[null,"2010-03-03",{"$f":"INDEX(Table2[Client],RANDBETWEEN(1,ROWS(Table2[])))","v":"Campbell"},{"$f":"INDEX(Table2[Service],RANDBETWEEN(1,ROWS(Table2[])))","v":"Dokok"},27]
[null,"2010-08-09",{"$f":"INDEX(Table2[Client],RANDBETWEEN(1,ROWS(Table2[])))","v":"Turner"},{"$f":"INDEX(Table2[Service],RANDBETWEEN(1,ROWS(Table2[])))","v":"Ludin"},111]
[null,"2010-07-10",{"$f":"INDEX(Table2[Client],RANDBETWEEN(1,ROWS(Table2[])))","v":"Roberts"},{"$f":"INDEX(Table2[Service],RANDBETWEEN(1,ROWS(Table2[])))","v":"Fadut"},14]
[null,"2010-01-31",{"$f":"INDEX(Table2[Client],RANDBETWEEN(1,ROWS(Table2[])))","v":"Perez"},{"$f":"INDEX(Table2[Service],RANDBETWEEN(1,ROWS(Table2[])))","v":"Kapan"},184]
[null,"2010-11-16",{"$f":"INDEX(Table2[Client],RANDBETWEEN(1,ROWS(Table2[])))","v":"Perez"},{"$f":"INDEX(Table2[Service],RANDBETWEEN(1,ROWS(Table2[])))","v":"Dokok"},145]
[null,"2010-08-16",{"$f":"INDEX(Table2[Client],RANDBETWEEN(1,ROWS(Table2[])))","v":"Parker"},{"$f":"INDEX(Table2[Service],RANDBETWEEN(1,ROWS(Table2[])))","v":"Fadut"},69]
[null,"2010-05-18",{"$f":"INDEX(Table2[Client],RANDBETWEEN(1,ROWS(Table2[])))","v":"Turner"},{"$f":"INDEX(Table2[Service],RANDBETWEEN(1,ROWS(Table2[])))","v":"Ludin"},227]
[null,"2010-03-17",{"$f":"INDEX(Table2[Client],RANDBETWEEN(1,ROWS(Table2[])))","v":"Roberts"},{"$f":"INDEX(Table2[Service],RANDBETWEEN(1,ROWS(Table2[])))","v":"Pikab"},159]
[null,"2010-10-25",{"$f":"INDEX(Table2[Client],RANDBETWEEN(1,ROWS(Table2[])))","v":"Campbell"},{"$f":"INDEX(Table2[Service],RANDBETWEEN(1,ROWS(Table2[])))","v":"Pikab"},121]
[null,"2010-01-11",{"$f":"INDEX(Table2[Client],RANDBETWEEN(1,ROWS(Table2[])))","v":"Phillips"},{"$f":"INDEX(Table2[Service],RANDBETWEEN(1,ROWS(Table2[])))","v":"Ludin"},165]
[null,"2010-03-27",{"$f":"INDEX(Table2[Client],RANDBETWEEN(1,ROWS(Table2[])))","v":"Campbell"},{"$f":"INDEX(Table2[Service],RANDBETWEEN(1,ROWS(Table2[])))","v":"Dokok"},84]
[null,"2010-07-15",{"$f":"INDEX(Table2[Client],RANDBETWEEN(1,ROWS(Table2[])))","v":"Perez"},{"$f":"INDEX(Table2[Service],RANDBETWEEN(1,ROWS(Table2[])))","v":"Fadut"},207]
[null,"2010-08-08",{"$f":"INDEX(Table2[Client],RANDBETWEEN(1,ROWS(Table2[])))","v":"Phillips"},{"$f":"INDEX(Table2[Service],RANDBETWEEN(1,ROWS(Table2[])))","v":"Dokok"},274]
[null,"2010-04-14",{"$f":"INDEX(Table2[Client],RANDBETWEEN(1,ROWS(Table2[])))","v":"Turner"},{"$f":"INDEX(Table2[Service],RANDBETWEEN(1,ROWS(Table2[])))","v":"Dokok"},182]
[null,"2010-01-26",{"$f":"INDEX(Table2[Client],RANDBETWEEN(1,ROWS(Table2[])))","v":"Roberts"},{"$f":"INDEX(Table2[Service],RANDBETWEEN(1,ROWS(Table2[])))","v":"Fadut"},230]
[null,"2010-08-05",{"$f":"INDEX(Table2[Client],RANDBETWEEN(1,ROWS(Table2[])))","v":"Miller"},{"$f":"INDEX(Table2[Service],RANDBETWEEN(1,ROWS(Table2[])))","v":"Veneg"},217]
[null,"2010-11-02",{"$f":"INDEX(Table2[Client],RANDBETWEEN(1,ROWS(Table2[])))","v":"Campbell"},{"$f":"INDEX(Table2[Service],RANDBETWEEN(1,ROWS(Table2[])))","v":"Fadut"},150]
[null,"2010-06-01",{"$f":"INDEX(Table2[Client],RANDBETWEEN(1,ROWS(Table2[])))","v":"Campbell"},{"$f":"INDEX(Table2[Service],RANDBETWEEN(1,ROWS(Table2[])))","v":"Kucec"},126]
[null,"2010-10-10",{"$f":"INDEX(Table2[Client],RANDBETWEEN(1,ROWS(Table2[])))","v":"Phillips"},{"$f":"INDEX(Table2[Service],RANDBETWEEN(1,ROWS(Table2[])))","v":"Kapan"},72]
[null,"2010-07-03",{"$f":"INDEX(Table2[Client],RANDBETWEEN(1,ROWS(Table2[])))","v":"Miller"},{"$f":"INDEX(Table2[Service],RANDBETWEEN(1,ROWS(Table2[])))","v":"Fadut"},255]
[null,"2010-09-14",{"$f":"INDEX(Table2[Client],RANDBETWEEN(1,ROWS(Table2[])))","v":"Turner"},{"$f":"INDEX(Table2[Service],RANDBETWEEN(1,ROWS(Table2[])))","v":"Pikab"},131]
[null,"2010-01-25",{"$f":"INDEX(Table2[Client],RANDBETWEEN(1,ROWS(Table2[])))","v":"Campbell"},{"$f":"INDEX(Table2[Service],RANDBETWEEN(1,ROWS(Table2[])))","v":"Kapan"},272]
[null,"2010-08-30",{"$f":"INDEX(Table2[Client],RANDBETWEEN(1,ROWS(Table2[])))","v":"Turner"},{"$f":"INDEX(Table2[Service],RANDBETWEEN(1,ROWS(Table2[])))","v":"Veneg"},10]
[null,"2010-07-01",{"$f":"INDEX(Table2[Client],RANDBETWEEN(1,ROWS(Table2[])))","v":"Phillips"},{"$f":"INDEX(Table2[Service],RANDBETWEEN(1,ROWS(Table2[])))","v":"Pikab"},136]
[null,"2010-12-04",{"$f":"INDEX(Table2[Client],RANDBETWEEN(1,ROWS(Table2[])))","v":"Miller"},{"$f":"INDEX(Table2[Service],RANDBETWEEN(1,ROWS(Table2[])))","v":"Ludin"},62]
[null,"2010-03-31",{"$f":"INDEX(Table2[Client],RANDBETWEEN(1,ROWS(Table2[])))","v":"Miller"},{"$f":"INDEX(Table2[Service],RANDBETWEEN(1,ROWS(Table2[])))","v":"Dokok"},244]
[null,"2010-05-10",{"$f":"INDEX(Table2[Client],RANDBETWEEN(1,ROWS(Table2[])))","v":"Miller"},{"$f":"INDEX(Table2[Service],RANDBETWEEN(1,ROWS(Table2[])))","v":"Dokok"},229]
[null,"2010-05-10",{"$f":"INDEX(Table2[Client],RANDBETWEEN(1,ROWS(Table2[])))","v":"Parker"},{"$f":"INDEX(Table2[Service],RANDBETWEEN(1,ROWS(Table2[])))","v":"Veneg"},127]
[null,"2010-03-23",{"$f":"INDEX(Table2[Client],RANDBETWEEN(1,ROWS(Table2[])))","v":"Parker"},{"$f":"INDEX(Table2[Service],RANDBETWEEN(1,ROWS(Table2[])))","v":"Veneg"},192]
[null,"2010-09-26",{"$f":"INDEX(Table2[Client],RANDBETWEEN(1,ROWS(Table2[])))","v":"Roberts"},{"$f":"INDEX(Table2[Service],RANDBETWEEN(1,ROWS(Table2[])))","v":"Ludin"},107]
[null,"2010-10-10",{"$f":"INDEX(Table2[Client],RANDBETWEEN(1,ROWS(Table2[])))","v":"Parker"},{"$f":"INDEX(Table2[Service],RANDBETWEEN(1,ROWS(Table2[])))","v":"Veneg"},23]
[null,"2010-08-17",{"$f":"INDEX(Table2[Client],RANDBETWEEN(1,ROWS(Table2[])))","v":"Miller"},{"$f":"INDEX(Table2[Service],RANDBETWEEN(1,ROWS(Table2[])))","v":"Dokok"},71]
[null,"2010-09-30",{"$f":"INDEX(Table2[Client],RANDBETWEEN(1,ROWS(Table2[])))","v":"Turner"},{"$f":"INDEX(Table2[Service],RANDBETWEEN(1,ROWS(Table2[])))","v":"Dokok"},43]
[null,"2010-07-29",{"$f":"INDEX(Table2[Client],RANDBETWEEN(1,ROWS(Table2[])))","v":"Perez"},{"$f":"INDEX(Table2[Service],RANDBETWEEN(1,ROWS(Table2[])))","v":"Dokok"},249]
[null,"2010-06-26",{"$f":"INDEX(Table2[Client],RANDBETWEEN(1,ROWS(Table2[])))","v":"Miller"},{"$f":"INDEX(Table2[Service],RANDBETWEEN(1,ROWS(Table2[])))","v":"Kapan"},262]
[null,"2010-04-23",{"$f":"INDEX(Table2[Client],RANDBETWEEN(1,ROWS(Table2[])))","v":"Parker"},{"$f":"INDEX(Table2[Service],RANDBETWEEN(1,ROWS(Table2[])))","v":"Ludin"},212]
[null,"2010-12-20",{"$f":"INDEX(Table2[Client],RANDBETWEEN(1,ROWS(Table2[])))","v":"Campbell"},{"$f":"INDEX(Table2[Service],RANDBETWEEN(1,ROWS(Table2[])))","v":"Fadut"},17]
[null,"2010-07-27",{"$f":"INDEX(Table2[Client],RANDBETWEEN(1,ROWS(Table2[])))","v":"Parker"},{"$f":"INDEX(Table2[Service],RANDBETWEEN(1,ROWS(Table2[])))","v":"Pikab"},181]
[null,"2010-04-01",{"$f":"INDEX(Table2[Client],RANDBETWEEN(1,ROWS(Table2[])))","v":"Miller"},{"$f":"INDEX(Table2[Service],RANDBETWEEN(1,ROWS(Table2[])))","v":"Kucec"},12]
[null,"2010-05-07",{"$f":"INDEX(Table2[Client],RANDBETWEEN(1,ROWS(Table2[])))","v":"Roberts"},{"$f":"INDEX(Table2[Service],RANDBETWEEN(1,ROWS(Table2[])))","v":"Kucec"},240]
[null,"2010-11-11",{"$f":"INDEX(Table2[Client],RANDBETWEEN(1,ROWS(Table2[])))","v":"Perez"},{"$f":"INDEX(Table2[Service],RANDBETWEEN(1,ROWS(Table2[])))","v":"Fadut"},243]
[null,"2010-05-18",{"$f":"INDEX(Table2[Client],RANDBETWEEN(1,ROWS(Table2[])))","v":"Miller"},{"$f":"INDEX(Table2[Service],RANDBETWEEN(1,ROWS(Table2[])))","v":"Ludin"},126]
[null,"2010-12-05",{"$f":"INDEX(Table2[Client],RANDBETWEEN(1,ROWS(Table2[])))","v":"Perez"},{"$f":"INDEX(Table2[Service],RANDBETWEEN(1,ROWS(Table2[])))","v":"Kucec"},246]
[null,"2010-10-25",{"$f":"INDEX(Table2[Client],RANDBETWEEN(1,ROWS(Table2[])))","v":"Campbell"},{"$f":"INDEX(Table2[Service],RANDBETWEEN(1,ROWS(Table2[])))","v":"Kapan"},222]
[null,"2010-09-23",{"$f":"INDEX(Table2[Client],RANDBETWEEN(1,ROWS(Table2[])))","v":"Campbell"},{"$f":"INDEX(Table2[Service],RANDBETWEEN(1,ROWS(Table2[])))","v":"Dokok"},235]
[null,"2010-01-13",{"$f":"INDEX(Table2[Client],RANDBETWEEN(1,ROWS(Table2[])))","v":"Parker"},{"$f":"INDEX(Table2[Service],RANDBETWEEN(1,ROWS(Table2[])))","v":"Kapan"},67]

{"sheet":"PTable","index":1,"n_rows":37,"n_cols":14,"rows_kept":37,"cut":false,"hidden":false,"merged":[]}
[]
[]
[]
[]
[null,"Service","(All)"]
[null,"PT_2"]
[null,"Sum of Rev","Date"]
[null,"Client","Jan","Feb","Mar","Apr","May","Jun","Jul","Aug","Sep","Oct","Nov","Dec"]
[null,"Roberts",586,25,444,487,367,246,0,0,491,197,37,649]
[null,"Parker",500,253,844,168,304,296,450,0,361,355,358,544]
[null,"Perez",452,223,488,233,766,542,246,106,499,374,341,298]
[null,"Campbell",444,583,547,162,570,0,345,114,296,758,390,673]
[null,"Phillips",67,161,214,184,0,1079,249,0,209,0,547,202]
[null,"Turner",249,201,251,243,30,171,457,0,333,187,664,145]
[null,"Miller",251,544,596,374,280,460,0,597,250,426,31,43]
[null,"Grand Total",2549,1990,3384,1851,2317,2794,1747,817,2439,2297,2368,2554]
[]
[]
[]
[]
[]
[]
[]
[]
[]
[null,"Service","(All)",null,null,null,null,null,"Service","(All)"]
[null,"PT_1",null,null,"Table3",null,null,null,"PT_3",null,null,null,"Table4"]
[null,"Sum of Rev","Date",null,null,null,null,null,"Sum of Rev","Date"]
[null,"Client","Mar","Apr","Diff","Pct",null,null,"Client","Mar","Apr","May","Avg","Spare"]
[null,"Roberts",444,487,{"$f":"Get_2-Get_1","v":43},{"$f":"IFERROR(Table3[[#This Row],[Diff]]/Get_1,\"\")","v":9.6846846846846843E-2},null,null,"Roberts",444,487,367,{"$f":"AVERAGE(INDEX(PT_3Dat,rown,))","v":432.66666666666669}]
[null,"Parker",844,168,{"$f":"Get_2-Get_1","v":-676},{"$f":"IFERROR(Table3[[#This Row],[Diff]]/Get_1,\"\")","v":-0.80094786729857825},null,null,"Parker",844,168,304,{"$f":"AVERAGE(INDEX(PT_3Dat,rown,))","v":438.66666666666669}]
[null,"Perez",488,233,{"$f":"Get_2-Get_1","v":-255},{"$f":"IFERROR(Table3[[#This Row],[Diff]]/Get_1,\"\")","v":-0.52254098360655743},null,null,"Perez",488,233,766,{"$f":"AVERAGE(INDEX(PT_3Dat,rown,))","v":495.66666666666669}]
[null,"Campbell",547,162,{"$f":"Get_2-Get_1","v":-385},{"$f":"IFERROR(Table3[[#This Row],[Diff]]/Get_1,\"\")","v":-0.70383912248628888},null,null,"Campbell",547,162,570,{"$f":"AVERAGE(INDEX(PT_3Dat,rown,))","v":426.33333333333331}]
[null,"Phillips",214,184,{"$f":"Get_2-Get_1","v":-30},{"$f":"IFERROR(Table3[[#This Row],[Diff]]/Get_1,\"\")","v":-0.14018691588785046},null,null,"Phillips",214,184,null,{"$f":"AVERAGE(INDEX(PT_3Dat,rown,))","v":199}]
[null,"Turner",251,243,{"$f":"Get_2-Get_1","v":-8},{"$f":"IFERROR(Table3[[#This Row],[Diff]]/Get_1,\"\")","v":-3.1872509960159362E-2},null,null,"Turner",251,243,30,{"$f":"AVERAGE(INDEX(PT_3Dat,rown,))","v":174.66666666666666}]
[null,"Miller",596,374,{"$f":"Get_2-Get_1","v":-222},{"$f":"IFERROR(Table3[[#This Row],[Diff]]/Get_1,\"\")","v":-0.37248322147651008},null,null,"Miller",596,374,280,{"$f":"AVERAGE(INDEX(PT_3Dat,rown,))","v":416.66666666666669}]
[null,"Grand Total",3384,1851,{"$f":"SUBTOTAL(104,Table3[Diff])","v":43},{"$f":"SUBTOTAL(104,Table3[Pct])","v":9.6846846846846843E-2},null,null,"Grand Total",3384,1851,2317,{"$f":"SUBTOTAL(101,Table4[Avg])","v":369.09523809523807}]